[Event "Titled Tuesday Blitz May 16 Late 2023"]
[White "Chen, Ryo"]
[Black "Erzhanov, Arman"]
[WhiteFideId "7003072"]
[BlackFideId "4138821"]
[WhiteElo "2169"]
[BlackElo "2138"]
[Result "1/2-1/2"]
[Round "05"]
[TimeControl "180+2"]
[Date "2023.05.16"]
[WhiteClock "0:00:14"]
[BlackClock "0:01:17"]

1. e4 {[%clk 0:03:00]}  d6 {[%clk 0:03:00]} 2. d4 {[%clk 0:02:59]}  Nf6 {[%clk 0:03:00]} 3. Nc3 {[%clk 0:02:58]}  c6 {[%clk 0:03:01]} 4. f4 {[%clk 0:02:53]}  d5 {[%clk 0:03:01]} 5. e5 {[%clk 0:02:52]}  Ng8 {[%clk 0:03:02]} 6. Bd3 {[%clk 0:02:47]}  h5 {[%clk 0:03:02]} 7. Nf3 {[%clk 0:02:36]}  Nh6 {[%clk 0:03:02]} 8. O-O {[%clk 0:02:35]}  g6 {[%clk 0:03:01]} 9. Ne2 {[%clk 0:02:33]}  Bf5 {[%clk 0:03:01]} 10. Bxf5 {[%clk 0:02:20]}  Nxf5 {[%clk 0:02:58]} 11. e6 {[%clk 0:02:18]}  f6 {[%clk 0:02:56]} 12. Ng3 {[%clk 0:02:15]}  Nxg3 {[%clk 0:02:55]} 13. hxg3 {[%clk 0:02:14]}  Qd6 {[%clk 0:02:50]} 14. Re1 {[%clk 0:01:59]}  Na6 {[%clk 0:02:43]} 15. Nh4 {[%clk 0:01:56]}  O-O-O {[%clk 0:02:22]} 16. Nxg6 {[%clk 0:01:51]}  Rh7 {[%clk 0:02:16]} 17. f5 {[%clk 0:01:47]}  Bh6 {[%clk 0:02:11]} 18. Bxh6 {[%clk 0:01:40]}  Rxh6 {[%clk 0:02:11]} 19. Qf3 {[%clk 0:01:39]}  Rg8 {[%clk 0:02:00]} 20. Re3 {[%clk 0:01:21]}  Nc7 {[%clk 0:01:58]} 21. Rf1 {[%clk 0:01:17]}  Ne8 {[%clk 0:01:57]} 22. Qf4 {[%clk 0:01:10]}  Qxf4 {[%clk 0:01:53]} 23. gxf4 {[%clk 0:01:03]}  Rg7 {[%clk 0:01:52]} 24. Rh3 {[%clk 0:00:59]}  Nd6 {[%clk 0:01:52]} 25. g4 {[%clk 0:00:57]}  Rhxg6 {[%clk 0:01:39]} 26. fxg6 {[%clk 0:00:54]}  Rxg6 {[%clk 0:01:40]} 27. g5 {[%clk 0:00:52]}  fxg5 {[%clk 0:01:40]} 28. f5 {[%clk 0:00:52]}  Rh6 {[%clk 0:01:40]} 29. Kg2 {[%clk 0:00:49]}  Ne4 {[%clk 0:01:40]} 30. Ra3 {[%clk 0:00:45]}  a6 {[%clk 0:01:40]} 31. Re3 {[%clk 0:00:39]}  g4 {[%clk 0:01:38]} 32. c4 {[%clk 0:00:38]}  h4 {[%clk 0:01:36]} 33. cxd5 {[%clk 0:00:37]}  cxd5 {[%clk 0:01:37]} 34. Rc1+ {[%clk 0:00:36]}  Kb8 {[%clk 0:01:36]} 35. Rc2 {[%clk 0:00:34]}  g3 {[%clk 0:01:35]} 36. Kh3 {[%clk 0:00:31]}  Nf2+ {[%clk 0:01:30]} 37. Rxf2 {[%clk 0:00:28]}  gxf2 {[%clk 0:01:31]} 38. Rf3 {[%clk 0:00:28]}  Kc7 {[%clk 0:01:32]} 39. Rxf2 {[%clk 0:00:28]}  Kd6 {[%clk 0:01:30]} 40. Rf4 {[%clk 0:00:28]}  Rh5 {[%clk 0:01:29]} 41. b4 {[%clk 0:00:24]}  b5 {[%clk 0:01:28]} 42. a3 {[%clk 0:00:24]}  Kc7 {[%clk 0:01:27]} 43. f6 {[%clk 0:00:25]}  exf6 {[%clk 0:01:27]} 44. Rxf6 {[%clk 0:00:25]}  Kd6 {[%clk 0:01:26]} 45. e7+ {[%clk 0:00:24]}  Kxe7 {[%clk 0:01:26]} 46. Rxa6 {[%clk 0:00:25]}  Rf5 {[%clk 0:01:26]} 47. Kxh4 {[%clk 0:00:24]}  Rf4+ {[%clk 0:01:26]} 48. Kg5 {[%clk 0:00:24]}  Rxd4 {[%clk 0:01:27]} 49. Kf5 {[%clk 0:00:25]}  Re4 {[%clk 0:01:26]} 50. Ra5 {[%clk 0:00:22]}  Re3 {[%clk 0:01:26]} 51. Rxb5 {[%clk 0:00:22]}  Rxa3 {[%clk 0:01:26]} 52. Rxd5 {[%clk 0:00:22]}  Rb3 {[%clk 0:01:24]} 53. b5 {[%clk 0:00:22]}  Rb4 {[%clk 0:01:24]} 54. Ke5 {[%clk 0:00:21]}  Rb1 {[%clk 0:01:20]} 55. Kd4 {[%clk 0:00:19]}  Ke6 {[%clk 0:01:12]} 56. Rh5 {[%clk 0:00:18]}  Kd6 {[%clk 0:01:11]} 57. Kc4 {[%clk 0:00:18]}  Kc7 {[%clk 0:01:11]} 58. Rh7+ {[%clk 0:00:18]}  Kb6 {[%clk 0:01:12]} 59. Rh6+ {[%clk 0:00:18]}  Kb7 {[%clk 0:01:12]} 60. Kc5 {[%clk 0:00:18]}  Rc1+ {[%clk 0:01:12]} 61. Kd5 {[%clk 0:00:18]}  Rd1+ {[%clk 0:01:12]} 62. Kc4 {[%clk 0:00:18]}  Rc1+ {[%clk 0:01:13]} 63. Kd4 {[%clk 0:00:19]}  Rd1+ {[%clk 0:01:13]} 64. Kc3 {[%clk 0:00:19]}  Rc1+ {[%clk 0:01:14]} 65. Kb3 {[%clk 0:00:18]}  Rb1+ {[%clk 0:01:14]} 66. Kc4 {[%clk 0:00:18]}  Rc1+ {[%clk 0:01:14]} 67. Kb4 {[%clk 0:00:18]}  Rb1+ {[%clk 0:01:14]} 68. Kc5 {[%clk 0:00:18]}  Rc1+ {[%clk 0:01:15]} 69. Kd5 {[%clk 0:00:18]}  Rd1+ {[%clk 0:01:15]} 70. Ke4 {[%clk 0:00:17]}  Rb1 {[%clk 0:01:15]} 71. Rh5 {[%clk 0:00:16]}  Kb6 {[%clk 0:01:15]} 72. Kd4 {[%clk 0:00:14]}  Rb4+ {[%clk 0:01:16]} 73. Kc3 {[%clk 0:00:13]}  Rxb5 {[%clk 0:01:16]} 74. Rxb5+ {[%clk 0:00:14]}  Kxb5 {[%clk 0:01:17]} 1/2-1/2


[Site "https://www.chess.com"]

[Event "Titled Tuesday Blitz May 16 Late 2023"]
[White "Reprintsev, Alexander"]
[Black "Papasimakopoulos, Alexandros"]
[WhiteFideId "14100541"]
[BlackFideId "4244125"]
[WhiteElo "2218"]
[BlackElo "2359"]
[Result "0-1"]
[Round "05"]
[TimeControl "180+2"]
[Date "2023.05.16"]
[WhiteClock "0:00:01"]
[BlackClock "0:00:16"]

1. e4 {[%clk 0:03:00]}  e6 {[%clk 0:03:00]} 2. d4 {[%clk 0:02:59]}  d5 {[%clk 0:03:00]} 3. Nc3 {[%clk 0:02:59]}  Bb4 {[%clk 0:03:01]} 4. Ne2 {[%clk 0:02:59]}  Nc6 {[%clk 0:02:59]} 5. a3 {[%clk 0:02:55]}  Ba5 {[%clk 0:02:57]} 6. g3 {[%clk 0:02:43]}  Nge7 {[%clk 0:02:50]} 7. Bg2 {[%clk 0:02:40]}  O-O {[%clk 0:02:50]} 8. O-O {[%clk 0:02:38]}  f5 {[%clk 0:02:21]} 9. exd5 {[%clk 0:02:22]}  Nxd5 {[%clk 0:02:19]} 10. b4 {[%clk 0:02:14]}  Nxc3 {[%clk 0:02:15]} 11. Nxc3 {[%clk 0:02:14]}  Bb6 {[%clk 0:02:16]} 12. d5 {[%clk 0:02:14]}  exd5 {[%clk 0:01:53]} 13. Qxd5+ {[%clk 0:02:09]}  Kh8 {[%clk 0:01:51]} 14. Qxd8 {[%clk 0:02:00]}  Rxd8 {[%clk 0:01:52]} 15. Nd5 {[%clk 0:01:59]}  Be6 {[%clk 0:01:45]} 16. c4 {[%clk 0:01:57]}  Bd4 {[%clk 0:01:32]} 17. Ra2 {[%clk 0:01:55]}  Rac8 {[%clk 0:01:32]} 18. Bf4 {[%clk 0:01:52]}  Rd7 {[%clk 0:01:22]} 19. Re1 {[%clk 0:01:50]}  Bf7 {[%clk 0:01:21]} 20. h4 {[%clk 0:01:43]}  h6 {[%clk 0:01:18]} 21. Bf3 {[%clk 0:01:41]}  a6 {[%clk 0:01:12]} 22. Kg2 {[%clk 0:01:36]}  Kg8 {[%clk 0:00:52]} 23. Rae2 {[%clk 0:01:33]}  Kf8 {[%clk 0:00:49]} 24. h5 {[%clk 0:01:33]}  Ba7 {[%clk 0:00:38]} 25. Rd2 {[%clk 0:01:01]}  Nd4 {[%clk 0:00:38]} 26. Red1 {[%clk 0:00:56]}  Nxf3 {[%clk 0:00:37]} 27. Kxf3 {[%clk 0:00:56]}  Bxh5+ {[%clk 0:00:36]} 28. Kg2 {[%clk 0:00:54]}  Bxd1 {[%clk 0:00:36]} 29. Rxd1 {[%clk 0:00:54]}  c6 {[%clk 0:00:37]} 30. Nb6 {[%clk 0:00:42]}  Rxd1 {[%clk 0:00:35]} 31. Nxc8 {[%clk 0:00:42]}  Bd4 {[%clk 0:00:32]} 32. Nd6 {[%clk 0:00:39]}  b5 {[%clk 0:00:32]} 33. cxb5 {[%clk 0:00:38]}  cxb5 {[%clk 0:00:32]} 34. Nxf5 {[%clk 0:00:38]}  Bb2 {[%clk 0:00:32]} 35. Bd6+ {[%clk 0:00:34]}  Kf7 {[%clk 0:00:31]} 36. Bc5 {[%clk 0:00:33]}  Bxa3 {[%clk 0:00:29]} 37. Nd6+ {[%clk 0:00:33]}  Kg6 {[%clk 0:00:27]} 38. Ne8 {[%clk 0:00:32]}  a5 {[%clk 0:00:19]} 39. Nc7 {[%clk 0:00:20]}  Bxb4 {[%clk 0:00:19]} 40. Be3 {[%clk 0:00:19]}  Bd2 {[%clk 0:00:18]} 41. Bd4 {[%clk 0:00:16]}  b4 {[%clk 0:00:18]} 42. Ne6 {[%clk 0:00:15]}  Bc3 {[%clk 0:00:17]} 43. Bb6 {[%clk 0:00:14]}  b3 {[%clk 0:00:16]} 44. Nf4+ {[%clk 0:00:14]}  Kh7 {[%clk 0:00:16]} 45. Ne2 {[%clk 0:00:14]}  Bf6 {[%clk 0:00:15]} 46. Bxa5 {[%clk 0:00:13]}  b2 {[%clk 0:00:16]} 47. Nc3 {[%clk 0:00:13]}  Bxc3 {[%clk 0:00:15]} 48. Bxc3 {[%clk 0:00:01]}  b1=Q {[%clk 0:00:16]} 0-1


[Site "https://www.chess.com"]

[Event "Titled Tuesday Blitz May 16 Late 2023"]
[White "Wizard_of_Odds"]
[Black "Nazari, Arad"]
[BlackFideId "12577324"]
[WhiteElo "2459"]
[BlackElo "2175"]
[Result "0-1"]
[Round "05"]
[TimeControl "180+2"]
[Date "2023.05.16"]
[WhiteClock "0:00:02"]
[BlackClock "0:00:05"]

1. Nf3 {[%clk 0:02:58]}  c5 {[%clk 0:02:59]} 2. b3 {[%clk 0:02:57]}  Nc6 {[%clk 0:02:57]} 3. Bb2 {[%clk 0:02:55]}  d6 {[%clk 0:02:55]} 4. e3 {[%clk 0:02:52]}  e5 {[%clk 0:02:50]} 5. d4 {[%clk 0:02:48]}  e4 {[%clk 0:02:47]} 6. Nfd2 {[%clk 0:02:45]}  cxd4 {[%clk 0:02:47]} 7. exd4 {[%clk 0:02:34]}  d5 {[%clk 0:02:47]} 8. Be2 {[%clk 0:02:29]}  Bd6 {[%clk 0:02:32]} 9. c4 {[%clk 0:02:24]}  Nge7 {[%clk 0:02:04]} 10. a3 {[%clk 0:01:59]}  e3 {[%clk 0:01:50]} 11. fxe3 {[%clk 0:01:57]}  Nf5 {[%clk 0:01:50]} 12. Nf1 {[%clk 0:01:57]}  Qh4+ {[%clk 0:01:47]} 13. Kd2 {[%clk 0:01:52]}  Nfxd4 {[%clk 0:01:02]} 14. exd4 {[%clk 0:01:39]}  Nxd4 {[%clk 0:00:58]} 15. Kc1 {[%clk 0:01:20]}  Be5 {[%clk 0:00:35]} 16. Nbd2 {[%clk 0:01:00]}  Qf6 {[%clk 0:00:28]} 17. Ra2 {[%clk 0:00:53]}  O-O {[%clk 0:00:26]} 18. Nf3 {[%clk 0:00:44]}  Bf4+ {[%clk 0:00:20]} 19. N1d2 {[%clk 0:00:37]}  Nxe2+ {[%clk 0:00:14]} 20. Qxe2 {[%clk 0:00:38]}  Qg6 {[%clk 0:00:12]} 21. g3 {[%clk 0:00:28]}  Bh6 {[%clk 0:00:12]} 22. Re1 {[%clk 0:00:19]}  Bf5 {[%clk 0:00:12]} 23. Bd4 {[%clk 0:00:10]}  Bb1 {[%clk 0:00:09]} 24. Rb2 {[%clk 0:00:08]}  Bd3 {[%clk 0:00:08]} 25. Qf2 {[%clk 0:00:05]}  dxc4 {[%clk 0:00:08]} 26. bxc4 {[%clk 0:00:05]}  Qc6 {[%clk 0:00:08]} 27. Ne5 {[%clk 0:00:04]}  Qa4 {[%clk 0:00:03]} 28. Nxd3 {[%clk 0:00:04]}  Qxc4+ {[%clk 0:00:03]} 29. Kb1 {[%clk 0:00:03]}  Qxd3+ {[%clk 0:00:03]} 30. Ka2 {[%clk 0:00:02]}  Rfd8 {[%clk 0:00:04]} 31. Be3 {[%clk 0:00:01]}  Qd5+ {[%clk 0:00:04]} 32. Ka1 {[%clk 0:00:01]}  Qd3 {[%clk 0:00:03]} 33. Bxh6 {[%clk 0:00:02]}  Qxa3+ {[%clk 0:00:03]} 34. Kb1 {[%clk 0:00:02]}  Qd3+ {[%clk 0:00:04]} 35. Ka1 {[%clk 0:00:02]}  Rd6 {[%clk 0:00:04]} 36. Qf4 {[%clk 0:00:02]}  Ra6+ {[%clk 0:00:04]} 37. Ra2 {[%clk 0:00:03]}  Qc3+ {[%clk 0:00:05]} 38. Kb1 {[%clk 0:00:03]}  Rb6+ {[%clk 0:00:06]} 39. Rb2 {[%clk 0:00:02]}  Qxb2# {[%clk 0:00:05]} 0-1


[Site "https://www.chess.com"]

[Event "Titled Tuesday Blitz May 16 Late 2023"]
[White "Gatterer, Florian"]
[Black "Iliaguev, Nisim"]
[WhiteFideId "811688"]
[BlackFideId "2817276"]
[WhiteElo "2221"]
[BlackElo "2241"]
[Result "0-1"]
[Round "05"]
[TimeControl "180+2"]
[Date "2023.05.16"]
[WhiteClock "0:00:00"]
[BlackClock "0:00:14"]

1. Nf3 {[%clk 0:03:00]}  g6 {[%clk 0:02:58]} 2. e4 {[%clk 0:02:59]}  Bg7 {[%clk 0:02:58]} 3. d4 {[%clk 0:02:59]}  d6 {[%clk 0:02:58]} 4. Bd3 {[%clk 0:02:59]}  Nf6 {[%clk 0:02:58]} 5. O-O {[%clk 0:02:59]}  O-O {[%clk 0:02:59]} 6. Re1 {[%clk 0:02:58]}  Bg4 {[%clk 0:02:59]} 7. Nbd2 {[%clk 0:02:57]}  Nbd7 {[%clk 0:02:59]} 8. h3 {[%clk 0:02:57]}  Bxf3 {[%clk 0:02:59]} 9. Nxf3 {[%clk 0:02:57]}  e5 {[%clk 0:02:59]} 10. c3 {[%clk 0:02:57]}  Re8 {[%clk 0:02:59]} 11. a4 {[%clk 0:02:56]}  c6 {[%clk 0:02:59]} 12. a5 {[%clk 0:02:50]}  a6 {[%clk 0:02:57]} 13. dxe5 {[%clk 0:02:39]}  dxe5 {[%clk 0:02:58]} 14. Bc4 {[%clk 0:02:36]}  Qc7 {[%clk 0:02:40]} 15. Ng5 {[%clk 0:02:30]}  Re7 {[%clk 0:02:39]} 16. b3 {[%clk 0:02:21]}  h6 {[%clk 0:02:37]} 17. Ba3 {[%clk 0:02:20]}  c5 {[%clk 0:02:23]} 18. Nf3 {[%clk 0:02:09]}  Rd8 {[%clk 0:02:22]} 19. Qc2 {[%clk 0:02:02]}  Qxa5 {[%clk 0:01:57]} 20. b4 {[%clk 0:01:58]}  Qc7 {[%clk 0:01:51]} 21. b5 {[%clk 0:01:57]}  a5 {[%clk 0:01:48]} 22. Bb2 {[%clk 0:01:43]}  b6 {[%clk 0:01:45]} 23. Bf1 {[%clk 0:01:30]}  Nh5 {[%clk 0:01:32]} 24. g3 {[%clk 0:01:26]}  Nhf6 {[%clk 0:01:30]} 25. Bc4 {[%clk 0:01:20]}  Nf8 {[%clk 0:01:25]} 26. Rad1 {[%clk 0:01:15]}  Red7 {[%clk 0:01:25]} 27. Rxd7 {[%clk 0:01:02]}  Rxd7 {[%clk 0:01:26]} 28. Nh4 {[%clk 0:00:48]}  Kh7 {[%clk 0:01:21]} 29. f4 {[%clk 0:00:48]}  exf4 {[%clk 0:01:00]} 30. e5 {[%clk 0:00:48]}  Nd5 {[%clk 0:01:00]} 31. Bxd5 {[%clk 0:00:36]}  Rxd5 {[%clk 0:00:58]} 32. gxf4 {[%clk 0:00:36]}  Qd7 {[%clk 0:00:53]} 33. e6 {[%clk 0:00:24]}  Nxe6 {[%clk 0:00:46]} 34. f5 {[%clk 0:00:24]}  Nf8 {[%clk 0:00:43]} 35. Qe4 {[%clk 0:00:18]}  Re5 {[%clk 0:00:42]} 36. Qb1 {[%clk 0:00:17]}  Rxe1+ {[%clk 0:00:36]} 37. Qxe1 {[%clk 0:00:16]}  g5 {[%clk 0:00:36]} 38. f6 {[%clk 0:00:15]}  Bxf6 {[%clk 0:00:34]} 39. Qe4+ {[%clk 0:00:14]}  Ng6 {[%clk 0:00:33]} 40. Nxg6 {[%clk 0:00:13]}  fxg6 {[%clk 0:00:33]} 41. Qc6 {[%clk 0:00:13]}  Qd1+ {[%clk 0:00:31]} 42. Kg2 {[%clk 0:00:12]}  Qd2+ {[%clk 0:00:32]} 43. Kf3 {[%clk 0:00:12]}  Qf4+ {[%clk 0:00:31]} 44. Kg2 {[%clk 0:00:12]}  Bg7 {[%clk 0:00:24]} 45. Qf3 {[%clk 0:00:09]}  Qxf3+ {[%clk 0:00:23]} 46. Kxf3 {[%clk 0:00:09]}  h5 {[%clk 0:00:21]} 47. Ke4 {[%clk 0:00:09]}  Bf6 {[%clk 0:00:20]} 48. Bc1 {[%clk 0:00:08]}  g4 {[%clk 0:00:18]} 49. hxg4 {[%clk 0:00:08]}  hxg4 {[%clk 0:00:19]} 50. c4 {[%clk 0:00:08]}  a4 {[%clk 0:00:19]} 51. Kf4 {[%clk 0:00:07]}  Kg7 {[%clk 0:00:16]} 52. Kxg4 {[%clk 0:00:07]}  Kf7 {[%clk 0:00:17]} 53. Kf4 {[%clk 0:00:07]}  Ke6 {[%clk 0:00:17]} 54. Ke4 {[%clk 0:00:08]}  g5 {[%clk 0:00:18]} 55. Ba3 {[%clk 0:00:07]}  Be5 {[%clk 0:00:15]} 56. Bc1 {[%clk 0:00:07]}  g4 {[%clk 0:00:16]} 57. Ba3 {[%clk 0:00:05]}  g3 {[%clk 0:00:16]} 58. Kf3 {[%clk 0:00:06]}  Kf5 {[%clk 0:00:16]} 59. Bc1 {[%clk 0:00:05]}  Ke6 {[%clk 0:00:15]} 60. Ba3 {[%clk 0:00:05]}  Bd6 {[%clk 0:00:15]} 61. Bc1 {[%clk 0:00:04]}  Bc7 {[%clk 0:00:13]} 62. Ba3 {[%clk 0:00:04]}  Ke5 {[%clk 0:00:13]} 63. Bb2+ {[%clk 0:00:04]}  Kf5 {[%clk 0:00:14]} 64. Bc1 {[%clk 0:00:04]}  g2 {[%clk 0:00:14]} 65. Kxg2 {[%clk 0:00:04]}  Ke4 {[%clk 0:00:15]} 66. Kf2 {[%clk 0:00:04]}  Kd3 {[%clk 0:00:15]} 67. Kf3 {[%clk 0:00:04]}  Kxc4 {[%clk 0:00:16]} 68. Ke4 {[%clk 0:00:05]}  Kxb5 {[%clk 0:00:16]} 69. Kd5 {[%clk 0:00:06]}  Bg3 {[%clk 0:00:16]} 70. Ke4 {[%clk 0:00:05]}  Kb4 {[%clk 0:00:16]} 71. Kd3 {[%clk 0:00:06]}  Kb3 {[%clk 0:00:16]} 72. Bg5 {[%clk 0:00:07]}  c4+ {[%clk 0:00:16]} 73. Ke4 {[%clk 0:00:06]}  a3 {[%clk 0:00:16]} 74. Kd5 {[%clk 0:00:07]}  a2 {[%clk 0:00:15]} 75. Kc6 {[%clk 0:00:08]}  a1=Q {[%clk 0:00:15]} 76. Kb7 {[%clk 0:00:09]}  Qg7+ {[%clk 0:00:14]} 77. Ka8 {[%clk 0:00:00]}  Qxg5 {[%clk 0:00:14]} 0-1


[Site "https://www.chess.com"]

[Event "Titled Tuesday Blitz May 16 Late 2023"]
[White "Mickiewicz, Piotr"]
[Black "TimGrutter03"]
[WhiteFideId "1114891"]
[WhiteElo "2246"]
[BlackElo "2632"]
[Result "0-1"]
[Round "05"]
[TimeControl "180+2"]
[Date "2023.05.16"]
[WhiteClock "0:00:00"]
[BlackClock "0:00:06"]

1. c4 {[%clk 0:03:00]}  g6 {[%clk 0:02:51]} 2. g3 {[%clk 0:03:01]}  Bg7 {[%clk 0:02:48]} 3. Bg2 {[%clk 0:03:02]}  d6 {[%clk 0:02:47]} 4. Nc3 {[%clk 0:03:01]}  Nc6 {[%clk 0:02:46]} 5. e3 {[%clk 0:02:54]}  e5 {[%clk 0:02:46]} 6. Nge2 {[%clk 0:02:53]}  f5 {[%clk 0:02:46]} 7. d4 {[%clk 0:02:51]}  e4 {[%clk 0:02:47]} 8. f3 {[%clk 0:02:51]}  exf3 {[%clk 0:02:45]} 9. Bxf3 {[%clk 0:02:50]}  Nf6 {[%clk 0:02:45]} 10. O-O {[%clk 0:02:49]}  O-O {[%clk 0:02:43]} 11. Qd3 {[%clk 0:02:48]}  Nb4 {[%clk 0:02:29]} 12. Qb1 {[%clk 0:02:45]}  Qe8 {[%clk 0:02:20]} 13. Bd2 {[%clk 0:02:39]}  c6 {[%clk 0:02:11]} 14. Nb5 {[%clk 0:02:31]}  cxb5 {[%clk 0:02:09]} 15. Bxb4 {[%clk 0:02:30]}  Qxe3+ {[%clk 0:02:08]} 16. Kg2 {[%clk 0:02:27]}  bxc4 {[%clk 0:01:59]} 17. Bxd6 {[%clk 0:02:26]}  Re8 {[%clk 0:01:56]} 18. Be5 {[%clk 0:02:05]}  Bd7 {[%clk 0:01:53]} 19. Qc1 {[%clk 0:02:00]}  Qxc1 {[%clk 0:01:35]} 20. Raxc1 {[%clk 0:02:01]}  Rac8 {[%clk 0:01:17]} 21. Bxb7 {[%clk 0:01:59]}  Bc6+ {[%clk 0:01:17]} 22. Bxc6 {[%clk 0:02:00]}  Rxc6 {[%clk 0:01:18]} 23. Rc2 {[%clk 0:01:54]}  Nd5 {[%clk 0:00:59]} 24. Bf4 {[%clk 0:01:46]}  Re4 {[%clk 0:00:56]} 25. Rfc1 {[%clk 0:01:42]}  Rce6 {[%clk 0:00:51]} 26. Kf2 {[%clk 0:01:28]}  Nb4 {[%clk 0:00:36]} 27. d5 {[%clk 0:01:03]}  Re8 {[%clk 0:00:36]} 28. Nc3 {[%clk 0:00:52]}  Bxc3 {[%clk 0:00:25]} 29. Rxc3 {[%clk 0:00:48]}  Nd3+ {[%clk 0:00:25]} 30. Kf3 {[%clk 0:00:37]}  Nxc1 {[%clk 0:00:21]} 31. Rxc1 {[%clk 0:00:38]}  Rd4 {[%clk 0:00:19]} 32. d6 {[%clk 0:00:39]}  Rd3+ {[%clk 0:00:19]} 33. Kf2 {[%clk 0:00:38]}  Rb8 {[%clk 0:00:16]} 34. Rc2 {[%clk 0:00:31]}  Re8 {[%clk 0:00:08]} 35. Rxc4 {[%clk 0:00:26]}  Re4 {[%clk 0:00:04]} 36. Rc7 {[%clk 0:00:18]}  g5 {[%clk 0:00:03]} 37. d7 {[%clk 0:00:15]}  Red4 {[%clk 0:00:02]} 38. d8=Q+ {[%clk 0:00:06]}  Rxd8 {[%clk 0:00:01]} 39. Bxg5 {[%clk 0:00:07]}  R8d7 {[%clk 0:00:01]} 40. Rc8+ {[%clk 0:00:07]}  Kf7 {[%clk 0:00:02]} 41. Bf4 {[%clk 0:00:07]}  Kg6 {[%clk 0:00:02]} 42. Rg8+ {[%clk 0:00:07]}  Kf7 {[%clk 0:00:02]} 43. Rh8 {[%clk 0:00:06]}  Kg7 {[%clk 0:00:02]} 44. Rg8+ {[%clk 0:00:06]}  Kxg8 {[%clk 0:00:02]} 45. Ke2 {[%clk 0:00:06]}  Kf7 {[%clk 0:00:03]} 46. h4 {[%clk 0:00:03]}  R3d5 {[%clk 0:00:04]} 47. b3 {[%clk 0:00:03]}  Re7+ {[%clk 0:00:04]} 48. Kf3 {[%clk 0:00:03]}  Re4 {[%clk 0:00:05]} 49. Kg2 {[%clk 0:00:04]}  Rxf4 {[%clk 0:00:05]} 50. gxf4 {[%clk 0:00:00]}  Rd2+ {[%clk 0:00:06]} 0-1


[Site "https://www.chess.com"]

[Event "Titled Tuesday Blitz May 16 Late 2023"]
[White "Silvestre, Christian"]
[Black "Tisaj, Domen"]
[WhiteFideId "30956269"]
[BlackFideId "14628708"]
[WhiteElo "2342"]
[BlackElo "2340"]
[Result "0-1"]
[Round "05"]
[TimeControl "180+2"]
[Date "2023.05.16"]
[WhiteClock "0:00:33"]
[BlackClock "0:00:31"]

1. e3 {[%clk 0:02:50]}  e5 {[%clk 0:02:57]} 2. d4 {[%clk 0:02:51]}  exd4 {[%clk 0:02:57]} 3. exd4 {[%clk 0:02:51]}  d5 {[%clk 0:02:57]} 4. Bd3 {[%clk 0:02:50]}  Nf6 {[%clk 0:02:57]} 5. Ne2 {[%clk 0:02:51]}  h6 {[%clk 0:02:57]} 6. O-O {[%clk 0:02:52]}  Bd6 {[%clk 0:02:56]} 7. Bf4 {[%clk 0:02:52]}  O-O {[%clk 0:02:57]} 8. Nbc3 {[%clk 0:02:51]}  c6 {[%clk 0:02:57]} 9. Qd2 {[%clk 0:02:51]}  Bxf4 {[%clk 0:02:51]} 10. Qxf4 {[%clk 0:02:49]}  Re8 {[%clk 0:02:50]} 11. Rae1 {[%clk 0:02:48]}  Nbd7 {[%clk 0:02:49]} 12. Ng3 {[%clk 0:02:47]}  Nf8 {[%clk 0:02:49]} 13. Re5 {[%clk 0:02:35]}  Ne6 {[%clk 0:02:43]} 14. Qh4 {[%clk 0:02:27]}  Nd7 {[%clk 0:02:37]} 15. Rh5 {[%clk 0:02:18]}  Nf6 {[%clk 0:02:14]} 16. Re5 {[%clk 0:02:16]}  Nd7 {[%clk 0:01:59]} 17. Rh5 {[%clk 0:02:14]}  Qxh4 {[%clk 0:01:29]} 18. Rxh4 {[%clk 0:02:15]}  Nf6 {[%clk 0:01:19]} 19. Nf5 {[%clk 0:02:05]}  Ng5 {[%clk 0:01:03]} 20. Ng3 {[%clk 0:01:50]}  Bd7 {[%clk 0:00:55]} 21. Nd1 {[%clk 0:01:42]}  Re7 {[%clk 0:00:45]} 22. Bf5 {[%clk 0:01:37]}  Bxf5 {[%clk 0:00:43]} 23. Nxf5 {[%clk 0:01:37]}  Re2 {[%clk 0:00:44]} 24. Nde3 {[%clk 0:01:24]}  Re8 {[%clk 0:00:44]} 25. Rd1 {[%clk 0:01:17]}  Nfe4 {[%clk 0:00:41]} 26. Ng3 {[%clk 0:00:56]}  Nxf2 {[%clk 0:00:30]} 27. Nxe2 {[%clk 0:00:52]}  Nxd1 {[%clk 0:00:30]} 28. Nxd1 {[%clk 0:00:33]}  Rxe2 {[%clk 0:00:31]} 0-1


[Site "https://www.chess.com"]

[Event "Titled Tuesday Blitz May 16 Late 2023"]
[White "Sliwicki, Damian"]
[Black "Kuznetsov, Felix"]
[WhiteFideId "1127128"]
[BlackFideId "34147990"]
[WhiteElo "2030"]
[BlackElo "2281"]
[Result "0-1"]
[Round "05"]
[TimeControl "180+2"]
[Date "2023.05.16"]
[WhiteClock "0:00:16"]
[BlackClock "0:00:54"]

1. e4 {[%clk 0:02:46]}  c5 {[%clk 0:02:59]} 2. Nf3 {[%clk 0:02:46]}  Nc6 {[%clk 0:02:59]} 3. d4 {[%clk 0:02:46]}  cxd4 {[%clk 0:03:00]} 4. Nxd4 {[%clk 0:02:47]}  Nf6 {[%clk 0:03:00]} 5. Nc3 {[%clk 0:02:44]}  d6 {[%clk 0:03:01]} 6. g3 {[%clk 0:02:21]}  g6 {[%clk 0:02:54]} 7. Bg2 {[%clk 0:02:21]}  Bd7 {[%clk 0:02:54]} 8. O-O {[%clk 0:02:20]}  Bg7 {[%clk 0:02:53]} 9. Bg5 {[%clk 0:02:17]}  O-O {[%clk 0:02:39]} 10. Qd2 {[%clk 0:02:01]}  Rc8 {[%clk 0:02:11]} 11. Nxc6 {[%clk 0:01:52]}  Bxc6 {[%clk 0:02:11]} 12. Rad1 {[%clk 0:01:37]}  Qb6 {[%clk 0:02:09]} 13. b3 {[%clk 0:01:22]}  Qc5 {[%clk 0:02:02]} 14. b4 {[%clk 0:00:27]}  Qxb4 {[%clk 0:01:44]} 15. Bxf6 {[%clk 0:00:28]}  Bxf6 {[%clk 0:01:27]} 16. Nd5 {[%clk 0:00:29]}  Qxd2 {[%clk 0:01:23]} 17. Nxf6+ {[%clk 0:00:29]}  Kg7 {[%clk 0:01:18]} 18. Rxd2 {[%clk 0:00:30]}  Kxf6 {[%clk 0:01:17]} 19. f4 {[%clk 0:00:27]}  Kg7 {[%clk 0:01:14]} 20. Bh3 {[%clk 0:00:25]}  Rc7 {[%clk 0:01:13]} 21. e5 {[%clk 0:00:25]}  dxe5 {[%clk 0:01:10]} 22. fxe5 {[%clk 0:00:26]}  e6 {[%clk 0:01:01]} 23. Rdf2 {[%clk 0:00:26]}  Bd5 {[%clk 0:01:01]} 24. a3 {[%clk 0:00:24]}  Rd8 {[%clk 0:00:58]} 25. Bg4 {[%clk 0:00:21]}  Rdd7 {[%clk 0:00:57]} 26. Be2 {[%clk 0:00:20]}  Rxc2 {[%clk 0:00:55]} 27. Bb5 {[%clk 0:00:18]}  Rxf2 {[%clk 0:00:54]} 28. Rxf2 {[%clk 0:00:19]}  Rc7 {[%clk 0:00:54]} 29. a4 {[%clk 0:00:17]}  Rc1+ {[%clk 0:00:54]} 30. Bf1 {[%clk 0:00:16]}  Bc4 {[%clk 0:00:54]} 0-1


[Site "https://www.chess.com"]